[Event "EYCC Girls U10 2021"]
[Site "Tornelo"]
[Date "2021.10.15"]
[Round "1.8"]
[White "Sunea, Sara Maria"]
[Black "Skvortsova, Anna Ig"]
[Result "1-0"]
[ECO "B38"]
[WhiteElo "1342"]
[BlackElo "1063"]
[Annotator "NA"]
[PlyCount "143"]
[EventDate "2021.10.15"]
[EventType "swiss"]
[EventCountry "NET"]
[SourceTitle "playchess.com"]
[Source "ChessBase"]
[SourceQuality "1"]
[TimeControl "5400+30"]

1. e4 {[%emt 0:00:30]} c5 {[%emt 0:00:44]} 2. Nf3 {[%emt 0:00:10]} Nc6 {[%emt 0:00:08]} 3. d4 {[%emt 0:00:13]} cxd4 {[%emt 0:00:26]} 4. Nxd4 {[%emt 0:00:38]} g6 {[%emt 0:00:24]} 5. c4 {[%emt 0:04:16]} Bg7 {[%emt 0:01:07]} 6. Be3 {[%emt 0:02:59]} Nf6 {[%emt 0:03:34]} 7. Nc3 {[%emt 0:02:46]} O-O {[%emt 0:00:47]} 8. Be2 {[%emt 0:01:17]} b6 {[%emt 0:02:56]} 9. O-O {[%emt 0:04:39]} Bb7 {[%emt 0:00:45]} 10. Nxc6 {[%emt 0:05:13]} Bxc6 {[%emt 0:02:26]} 11. f3 {[%emt 0:00:52]} Qc7 {[%emt 0:00:48]} 12. Rc1 {[%emt 0:04:24]} Rac8 {[%emt 0:01:27]} 13. Nd5 {[%emt 0:04:43]} Bxd5 {[%emt 0:00:58]} 14. cxd5 {[%emt 0:01:27]} Qb8 {[%emt 0:00:32]} 15. Qd2 {[%emt 0:04:49]} d6 {[%emt 0:02:04]} 16. Ba6 {[%emt 0:03:47]} Rxc1 {[%emt 0:02:06]} 17. Rxc1 {[%emt 0:00:31]} Nd7 {[%emt 0:00:30]} 18. b4 {[%emt 0:02:43]} Ne5 {[%emt 0:01:31]} 19. Qc2 {[%emt 0:01:49]} b5 {[%emt 0:01:56]} 20. Qc7 {[%emt 0:01:33]} Nc4 {[%emt 0:01:28]} 21. Qxb8 {[%emt 0:04:10]} Rxb8 {[%emt 0:00:43]} 22. Bxa7 {[%emt 0:00:53]} Ra8 {[%emt 0:00:45]} 23. Bxb5 {[%emt 0:00:24]} Rxa7 {[%emt 0:00:37]} 24. Bxc4 {[%emt 0:00:22]} Rc7 {[%emt 0:00:38]} 25. b5 {[%emt 0:02:08]} Bd4+ {[%emt 0:00:13]} 26. Kf1 {[%emt 0:00:23]} Kf8 {[%emt 0:00:40]} 27. Ke2 {[%emt 0:01:40]} Ke8 {[%emt 0:01:36]} 28. Kd3 {[%emt 0:00:14]} Bb6 {[%emt 0:00:11]} 29. Ra1 {[%emt 0:00:59]} Kd8 {[%emt 0:00:43]} 30. a4 {[%emt 0:00:20]} Ba5 {[%emt 0:00:37]} 31. Rb1 {[%emt 0:00:34]} Rb7 {[%emt 0:00:44]} 32. b6 {[%emt 0:02:14]} Rxb6 {[%emt 0:01:03]} 33. Rxb6 {[%emt 0:00:18]} Bxb6 {[%emt 0:00:05]} 34. Ba6 {[%emt 0:00:16]} Kc7 {[%emt 0:01:28]} 35. Kc4 {[%emt 0:01:05]} Ba5 {[%emt 0:00:24]} 36. Kb5 {[%emt 0:00:15]} Bc3 {[%emt 0:00:09]} 37. a5 {[%emt 0:01:01]} g5 {[%emt 0:01:17]} 38. Ka4 {[%emt 0:01:59]} f6 {[%emt 0:00:16]} 39. Bc4 {[%emt 0:00:37]} Kb7 {[%emt 0:00:21]} 40. Kb5 {[%emt 0:00:27]} Bd4 {[%emt 0:00:22]} 41. a6+ {[%emt 0:00:23]} Kc7 {[%emt 0:00:48]} 42. Bd3 {[%emt 0:01:12]} h6 {[%emt 0:00:27]} 43. Kc4 {[%emt 0:00:34]} Ba7 {[%emt 0:00:19]} 44. Kc3 {[%emt 0:00:31]} Bc5 {[%emt 0:00:44]} 45. Kd2 {[%emt 0:00:43]} Kd8 {[%emt 0:01:47]} 46. Ke2 {[%emt 0:01:06]} Kc7 {[%emt 0:06:05]} 47. Kf1 {[%emt 0:00:26]} Be3 {[%emt 0:00:19]} 48. g3 {[%emt 0:00:30]} h5 {[%emt 0:00:20]} 49. Ke2 {[%emt 0:00:32]} Bg1 {[%emt 0:02:00]} 50. h4 {[%emt 0:01:49]} gxh4 {[%emt 0:01:56]} 51. gxh4 {[%emt 0:00:29]} Kb6 {[%emt 0:00:46]} 52. Kf1 {[%emt 0:00:41]} Bh2 {[%emt 0:00:17]} 53. Kg2 {[%emt 0:00:15]} Be5 {[%emt 0:00:33]} 54. Be2 {[%emt 0:01:04]} Bf4 {[%emt 0:00:28]} 55. Bb5 {[%emt 0:00:30]} Bd2 {[%emt 0:03:33]} 56. Be8 {[%emt 0:01:50]} Kxa6 {[%emt 0:00:38]} 57. Bxh5 {[%emt 0:00:17]} Kb7 {[%emt 0:00:10]} 58. Kg3 {[%emt 0:01:01]} Kc7 {[%emt 0:00:25]} 59. Kg4 {[%emt 0:00:12]} Kd7 {[%emt 0:00:09]} 60. Bg6 {[%emt 0:00:23]} Bh6 {[%emt 0:00:24]} 61. Bf7 {[%emt 0:01:01]} Kc7 {[%emt 0:02:13]} 62. Kf5 {[%emt 0:00:30]} Kd7 {[%emt 0:00:12]} 63. Kg6 {[%emt 0:00:23]} Bf4 {[%emt 0:00:19]} 64. h5 {[%emt 0:00:25]} Kc7 {[%emt 0:01:27]} 65. h6 {[%emt 0:00:12]} Bxh6 {[%emt 0:00:05]} 66. Kxh6 {[%emt 0:00:13]} Kd8 {[%emt 0:01:12]} 67. Kg7 {[%emt 0:00:09]} Kc7 {[%emt 0:00:32]} 68. Kf8 {[%emt 0:00:12]} Kd7 {[%emt 0:00:07]} 69. Be6+ {[%emt 0:00:17]} Kd8 {[%emt 0:00:06]} 70. Kf7 {[%emt 0:00:23]} f5 {[%emt 0:00:11]} 71. exf5 {[%emt 0:00:17]} Kc7 {[%emt 0:00:07]} 72. Kxe7 {[%emt 0:00:14]} 1-0

[Event "EYCC Girls U10 2021"]
[Site "Tornelo"]
[Date "2021.10.15"]
[Round "1.9"]
[White "Ismayilova, Salbinaz"]
[Black "Siskou, Evangelia"]
[Result "0-1"]
[ECO "C78"]
[WhiteElo "1042"]
[BlackElo "1341"]
[Annotator "NA"]
[PlyCount "152"]
[EventDate "2021.10.15"]
[EventType "swiss"]
[EventCountry "NET"]
[SourceTitle "playchess.com"]
[Source "ChessBase"]
[SourceQuality "1"]
[TimeControl "5400+30"]

1. e4 {[%emt 0:00:30]} e5 {[%emt 0:00:39]} 2. Nf3 {[%emt 0:00:03]} Nc6 {[%emt 0:00:08]} 3. Bb5 {[%emt 0:00:02]} a6 {[%emt 0:00:11]} 4. Ba4 {[%emt 0:00:03]} Nf6 {[%emt 0:00:11]} 5. d3 {[%emt 0:00:05]} Bc5 {[%emt 0:00:28]} 6. O-O {[%emt 0:00:54]} b5 {[%emt 0:00:25]} 7. Bb3 {[%emt 0:00:07]} h6 {[%emt 0:00:33]} 8. c3 {[%emt 0:00:11]} d6 {[%emt 0:00:24]} 9. h3 {[%emt 0:00:14]} O-O {[%emt 0:00:14]} 10. Nbd2 {[%emt 0:00:13]} Bb6 {[%emt 0:00:30]} 11. Re1 {[%emt 0:00:10]} Be6 {[%emt 0:00:06]} 12. Bc2 {[%emt 0:00:05]} b4 {[%emt 0:02:05]} 13. Nf1 {[%emt 0:00:40]} bxc3 {[%emt 0:00:51]} 14. bxc3 {[%emt 0:00:06]} d5 {[%emt 0:01:10]} 15. exd5 {[%emt 0:03:57]} Nxd5 {[%emt 0:00:12]} 16. Bb2 {[%emt 0:03:53]} Rb8 {[%emt 0:06:54]} 17. Bb3 {[%emt 0:02:11]} Nf4 {[%emt 0:01:21]} 18. d4 {[%emt 0:05:03]} Bxb3 {[%emt 0:00:08]} 19. axb3 {[%emt 0:00:21]} exd4 {[%emt 0:00:27]} 20. cxd4 {[%emt 0:00:18]} Nb4 {[%emt 0:03:44]} 21. Ba3 {[%emt 0:01:37]} Nbd3 {[%emt 0:02:57]} 22. Bxf8 {[%emt 0:00:51]} Nxe1 {[%emt 0:02:25]} 23. Qxe1 {[%emt 0:00:15]} Qxf8 {[%emt 0:00:09]} 24. Rxa6 {[%emt 0:00:49]} Qc8 {[%emt 0:02:29]} 25. Ra3 {[%emt 0:02:03]} Qf5 {[%emt 0:04:07]} 26. Ng3 {[%emt 0:04:28]} Nxh3+ {[%emt 0:00:22]} 27. gxh3 {[%emt 0:00:38]} Qxf3 {[%emt 0:00:09]} 28. Qd2 {[%emt 0:00:41]} Rd8 {[%emt 0:00:23]} 29. Qe3 {[%emt 0:00:30]} Qd1+ {[%emt 0:00:52]} 30. Kg2 {[%emt 0:00:04]} Bxd4 {[%emt 0:01:00]} 31. Qe7 {[%emt 0:00:28]} Bb2 {[%emt 0:00:14]} 32. Ra7 {[%emt 0:00:17]} Qd5+ {[%emt 0:02:48]} 33. Kh2 {[%emt 0:00:14]} Qd4 {[%emt 0:01:17]} 34. Kg2 {[%emt 0:00:07]} Rd7 {[%emt 0:02:16]} 35. Qe8+ {[%emt 0:00:22]} Kh7 {[%emt 0:00:12]} 36. Qe4+ {[%emt 0:00:13]} Qxe4+ {[%emt 0:00:09]} 37. Nxe4 {[%emt 0:00:03]} Bd4 {[%emt 0:00:47]} 38. Rb7 {[%emt 0:00:36]} Bb6 {[%emt 0:00:19]} 39. Rb8 {[%emt 0:00:46]} Rd3 {[%emt 0:00:34]} 40. Rf8 {[%emt 0:01:39]} f6 {[%emt 0:00:53]} 41. Rf7 {[%emt 0:00:11]} Rxb3 {[%emt 0:00:10]} 42. Rd7 {[%emt 0:01:02]} f5 {[%emt 0:01:07]} 43. Ng3 {[%emt 0:00:20]} Rb2 {[%emt 0:00:45]} 44. Nh1 {[%emt 0:00:18]} c5 {[%emt 0:00:11]} 45. Rf7 {[%emt 0:00:16]} Kg6 {[%emt 0:00:15]} 46. Rd7 {[%emt 0:00:10]} c4 {[%emt 0:00:19]} 47. Rd6+ {[%emt 0:00:05]} Kh7 {[%emt 0:00:07]} 48. Rd5 {[%emt 0:00:05]} c3 {[%emt 0:00:31]} 49. Rd1 {[%emt 0:00:05]} c2 {[%emt 0:01:15]} 50. Rc1 {[%emt 0:00:05]} Bd8 {[%emt 0:00:38]} 51. f4 {[%emt 0:00:58]} g5 {[%emt 0:00:13]} 52. Nf2 {[%emt 0:00:20]} gxf4 {[%emt 0:00:49]} 53. Nd3 {[%emt 0:00:18]} f3+ {[%emt 0:00:15]} 54. Kxf3 {[%emt 0:00:08]} Bg5 {[%emt 0:00:52]} 55. Re1 {[%emt 0:00:27]} Rb3 {[%emt 0:00:37]} 56. Ke2 {[%emt 0:00:12]} Rxd3 {[%emt 0:00:26]} 57. Kxd3 {[%emt 0:00:30]} c1=Q {[%emt 0:00:20]} 58. Rxc1 {[%emt 0:00:03]} Bxc1 {[%emt 0:00:08]} 59. Ke2 {[%emt 0:00:03]} Kg6 {[%emt 0:00:14]} 60. Kf3 {[%emt 0:00:03]} Kg5 {[%emt 0:00:09]} 61. Kg3 {[%emt 0:00:03]} f4+ {[%emt 0:00:08]} 62. Kg2 {[%emt 0:00:05]} Kh4 {[%emt 0:00:08]} 63. Kh2 {[%emt 0:00:06]} f3 {[%emt 0:00:07]} 64. Kg1 {[%emt 0:00:02]} Kxh3 {[%emt 0:00:20]} 65. Kh1 {[%emt 0:00:06]} Kg3 {[%emt 0:00:07]} 66. Kg1 {[%emt 0:00:02]} f2+ {[%emt 0:00:11]} 67. Kf1 {[%emt 0:00:03]} h5 {[%emt 0:00:10]} 68. Ke2 {[%emt 0:00:03]} Kg2 {[%emt 0:00:10]} 69. Kd3 {[%emt 0:00:04]} f1=Q+ {[%emt 0:00:11]} 70. Ke4 {[%emt 0:00:02]} Qe2+ {[%emt 0:00:26]} 71. Kf5 {[%emt 0:00:03]} Kg3 {[%emt 0:00:14]} 72. Kf6 {[%emt 0:00:03]} Kg4 {[%emt 0:00:18]} 73. Kg6 {[%emt 0:00:06]} Qe6+ {[%emt 0:00:11]} 74. Kg7 {[%emt 0:00:04]} Bh6+ {[%emt 0:00:20]} 75. Kh7 {[%emt 0:00:05]} Qg6+ {[%emt 0:00:13]} 76. Kh8 {[%emt 0:00:03]} Qg7# {[%emt 0:00:13]} 0-1

[Event "EYCC Girls U10 2021"]
[Site "Tornelo"]
[Date "2021.10.15"]
[Round "1.10"]
[White "Bubnova, Uliana"]
[Black "Moscovitch, Ronnie"]
[Result "1-0"]
[ECO "B53"]
[WhiteElo "1333"]
[BlackElo "1036"]
[Annotator "NA"]
[PlyCount "141"]
[EventDate "2021.10.15"]
[EventType "swiss"]
[EventCountry "NET"]
[SourceTitle "playchess.com"]
[Source "ChessBase"]
[SourceQuality "1"]
[TimeControl "5400+30"]

1. e4 {[%emt 0:00:30]} c5 {[%emt 0:00:40]} 2. Nf3 {[%emt 0:00:07]} d6 {[%emt 0:00:05]} 3. d4 {[%emt 0:00:24]} cxd4 {[%emt 0:00:06]} 4. Qxd4 {[%emt 0:00:07]} Nc6 {[%emt 0:00:55]} 5. Bb5 {[%emt 0:00:38]} Bd7 {[%emt 0:00:58]} 6. Bxc6 {[%emt 0:00:14]} Bxc6 {[%emt 0:00:42]} 7. Nc3 {[%emt 0:02:38]} Nf6 {[%emt 0:04:36]} 8. Bg5 {[%emt 0:02:17]} e5 {[%emt 0:08:08]} 9. Qe3 {[%emt 0:06:59]} Be7 {[%emt 0:01:57]} 10. O-O {[%emt 0:02:06]} O-O {[%emt 0:00:56]} 11. h3 {[%emt 0:02:20]} a6 {[%emt 0:03:25]} 12. Rad1 {[%emt 0:01:49]} Qc7 {[%emt 0:01:54]} 13. Nh4 {[%emt 0:06:26]} Bd7 {[%emt 0:09:57]} 14. Nf3 {[%emt 0:07:36]} Be6 {[%emt 0:01:18]} 15. Qd2 {[%emt 0:03:12]} Rfe8 {[%emt 0:04:50]} 16. Bxf6 {[%emt 0:01:40]} Bxf6 {[%emt 0:00:35]} 17. Qxd6 {[%emt 0:00:27]} Qxd6 {[%emt 0:00:04]} 18. Rxd6 {[%emt 0:00:07]} Red8 {[%emt 0:03:19]} 19. Rfd1 {[%emt 0:00:41]} Re8 {[%emt 0:03:26]} 20. Nd5 {[%emt 0:03:51]} Bxd5 {[%emt 0:02:46]} 21. R1xd5 {[%emt 0:00:30]} h6 {[%emt 0:05:02]} 22. Rd7 {[%emt 0:01:38]} b5 {[%emt 0:01:04]} 23. Rb7 {[%emt 0:04:29]} Rad8 {[%emt 0:06:05]} 24. Rdd7 {[%emt 0:02:27]} Rxd7 {[%emt 0:01:19]} 25. Rxd7 {[%emt 0:00:09]} Rc8 {[%emt 0:04:51]} 26. c3 {[%emt 0:00:16]} Re8 {[%emt 0:00:13]} 27. Kf1 {[%emt 0:00:23]} Kf8 {[%emt 0:02:48]} 28. Ke2 {[%emt 0:00:48]} Re7 {[%emt 0:00:28]} 29. Rd5 {[%emt 0:00:50]} Ke8 {[%emt 0:00:39]} 30. Nd2 {[%emt 0:01:14]} Rd7 {[%emt 0:00:35]} 31. Rc5 {[%emt 0:00:19]} Kd8 {[%emt 0:02:16]} 32. Nb3 {[%emt 0:00:24]} Rc7 {[%emt 0:02:13]} 33. Kd3 {[%emt 0:01:29]} Kc8 {[%emt 0:01:48]} 34. Rd5 {[%emt 0:03:31]} Kb8 {[%emt 0:04:42]} 35. Nc5 {[%emt 0:01:03]} Ka7 {[%emt 0:00:55]} 36. Nd7 {[%emt 0:00:30]} Kb7 {[%emt 0:00:32]} 37. Nxe5 {[%emt 0:00:14]} Bxe5 {[%emt 0:00:06]} 38. Rxe5 {[%emt 0:00:06]} Rd7+ {[%emt 0:00:07]} 39. Rd5 {[%emt 0:00:15]} Re7 {[%emt 0:00:11]} 40. f3 {[%emt 0:00:14]} Kc6 {[%emt 0:00:16]} 41. c4 {[%emt 0:00:28]} bxc4+ {[%emt 0:00:16]} 42. Kxc4 {[%emt 0:00:08]} Kb7 {[%emt 0:00:22]} 43. a4 {[%emt 0:00:25]} Rc7+ {[%emt 0:00:12]} 44. Rc5 {[%emt 0:00:07]} Rd7 {[%emt 0:00:15]} 45. Kc3 {[%emt 0:00:28]} Kb6 {[%emt 0:00:23]} 46. Re5 {[%emt 0:01:21]} Rc7+ {[%emt 0:00:08]} 47. Kb3 {[%emt 0:00:18]} Ka7 {[%emt 0:00:24]} 48. Rd5 {[%emt 0:00:09]} Kb8 {[%emt 0:00:47]} 49. Rd4 {[%emt 0:00:49]} Ka7 {[%emt 0:00:44]} 50. g3 {[%emt 0:00:16]} Rb7+ {[%emt 0:00:10]} 51. Kc3 {[%emt 0:00:20]} Rc7+ {[%emt 0:00:13]} 52. Rc4 {[%emt 0:00:08]} Rd7 {[%emt 0:00:13]} 53. Kb4 {[%emt 0:00:54]} Kb7 {[%emt 0:00:58]} 54. Kc5 {[%emt 0:04:18]} Rc7+ {[%emt 0:00:22]} 55. Kd4 {[%emt 0:00:30]} Rd7+ {[%emt 0:00:06]} 56. Ke3 {[%emt 0:00:10]} Re7 {[%emt 0:00:33]} 57. f4 {[%emt 0:00:08]} f5 {[%emt 0:00:12]} 58. e5 {[%emt 0:00:12]} Rc7 {[%emt 0:00:22]} 59. Rxc7+ {[%emt 0:00:15]} Kxc7 {[%emt 0:00:04]} 60. Kd4 {[%emt 0:00:06]} Kd7 {[%emt 0:00:06]} 61. Kd5 {[%emt 0:00:07]} Ke7 {[%emt 0:00:03]} 62. b4 {[%emt 0:00:12]} Kd7 {[%emt 0:00:04]} 63. b5 {[%emt 0:00:06]} a5 {[%emt 0:00:04]} 64. b6 {[%emt 0:00:06]} Kc8 {[%emt 0:00:04]} 65. e6 {[%emt 0:00:07]} Kd8 {[%emt 0:00:05]} 66. b7 {[%emt 0:00:06]} Kc7 {[%emt 0:00:03]} 67. e7 {[%emt 0:00:06]} Kxb7 {[%emt 0:00:16]} 68. e8=Q {[%emt 0:00:21]} Kc7 {[%emt 0:00:05]} 69. Kc5 {[%emt 0:00:08]} Kb7 {[%emt 0:00:12]} 70. Qd7+ {[%emt 0:00:05]} Kb8 {[%emt 0:00:04]} 71. Kb6 {[%emt 0:00:06]} 1-0

[Event "EYCC Girls U10 2021"]
[Site "Tornelo"]
[Date "2021.10.15"]
[Round "1.11"]
[White "Nurdogan, Ilgin Destina"]
[Black "Stara, Zuzana"]
[Result "0-1"]
[ECO "B22"]
[WhiteElo "1020"]
[BlackElo "1332"]
[Annotator "NA"]
[PlyCount "70"]
[EventDate "2021.10.15"]
[EventType "swiss"]
[EventCountry "NET"]
[SourceTitle "playchess.com"]
[Source "ChessBase"]
[SourceQuality "1"]
[TimeControl "5400+30"]

1. e4 {[%emt 0:00:30]} c5 {[%emt 0:00:49]} 2. c3 {[%emt 0:00:12]} Nf6 {[%emt 0:00:47]} 3. e5 {[%emt 0:00:14]} Nd5 {[%emt 0:01:06]} 4. d4 {[%emt 0:00:21]} cxd4 {[%emt 0:03:02]} 5. cxd4 {[%emt 0:00:18]} d6 {[%emt 0:03:53]} 6. Nf3 {[%emt 0:01:17]} Bg4 {[%emt 0:03:03]} 7. Qb3 {[%emt 0:03:00]} Nb6 {[%emt 0:05:58]} 8. Ng5 {[%emt 0:02:09]} e6 {[%emt 0:05:14]} 9. Bb5+ {[%emt 0:01:00]} Nc6 {[%emt 0:08:20]} 10. O-O {[%emt 0:01:59]} d5 {[%emt 0:05:15]} 11. Qc2 {[%emt 0:04:14]} Rc8 {[%emt 0:03:12]} 12. Nc3 {[%emt 0:03:00]} Be7 {[%emt 0:02:17]} 13. f4 {[%emt 0:02:36]} h6 {[%emt 0:02:54]} 14. Nf3 {[%emt 0:02:19]} O-O {[%emt 0:01:54]} 15. Bxc6 {[%emt 0:02:01]} Rxc6 {[%emt 0:02:14]} 16. Qf2 {[%emt 0:01:47]} Bb4 {[%emt 0:05:06]} 17. Bd2 {[%emt 0:03:16]} Nc4 {[%emt 0:04:39]} 18. b3 {[%emt 0:14:00]} Nxd2 {[%emt 0:01:00]} 19. Nxd2 {[%emt 0:06:42]} Bxc3 {[%emt 0:01:03]} 20. Rac1 {[%emt 0:01:53]} Qb6 {[%emt 0:09:40]} 21. Qg3 {[%emt 0:02:59]} Bxd2 {[%emt 0:08:31]} 22. Rxc6 {[%emt 0:00:53]} Qxc6 {[%emt 0:03:21]} 23. Qxg4 {[%emt 0:00:40]} Be3+ {[%emt 0:00:36]} 24. Kh1 {[%emt 0:00:44]} Bxd4 {[%emt 0:00:44]} 25. h3 {[%emt 0:02:03]} Rc8 {[%emt 0:03:07]} 26. f5 {[%emt 0:01:31]} Bxe5 {[%emt 0:06:46]} 27. f6 {[%emt 0:00:44]} g6 {[%emt 0:01:50]} 28. Qh4 {[%emt 0:01:31]} Kh7 {[%emt 0:01:42]} 29. g4 {[%emt 0:02:45]} Qc2 {[%emt 0:03:00]} 30. Rf2 {[%emt 0:02:47]} Qe4+ {[%emt 0:00:33]} 31. Kg1 {[%emt 0:00:32]} Rc1+ {[%emt 0:00:33]} 32. Rf1 {[%emt 0:00:39]} Bd4+ {[%emt 0:00:33]} 33. Kh2 {[%emt 0:01:01]} Rxf1 {[%emt 0:00:39]} 34. g5 {[%emt 0:01:38]} Qxh4 {[%emt 0:01:03]} 35. gxh6 {[%emt 0:00:16]} Qf2# {[%emt 0:00:13]} 0-1

[Event "EYCC Girls U10 2021"]
[Site "Tornelo"]
[Date "2021.10.15"]
[Round "2.1"]
[White "Preobrazhenskaya, Diana"]
[Black "Farkas, Sara"]
[Result "1-0"]
[ECO "C02"]
[WhiteElo "1764"]
[BlackElo "1237"]
[Annotator "NA"]
[PlyCount "85"]
[EventDate "2021.10.15"]
[EventType "swiss"]
[EventCountry "NET"]
[SourceTitle "playchess.com"]
[Source "ChessBase"]
[SourceQuality "1"]
[TimeControl "5400+30"]

1. e4 {[%emt 0:00:30]} e6 {[%emt 0:00:38]} 2. d4 {[%emt 0:00:05]} d5 {[%emt 0:00:05]} 3. e5 {[%emt 0:00:05]} c5 {[%emt 0:00:04]} 4. c3 {[%emt 0:00:03]} Nc6 {[%emt 0:00:05]} 5. Nf3 {[%emt 0:00:07]} Qb6 {[%emt 0:00:08]} 6. a3 {[%emt 0:00:04]} cxd4 {[%emt 0:00:21]} 7. cxd4 {[%emt 0:00:10]} Nh6 {[%emt 0:00:14]} 8. b4 {[%emt 0:01:10]} Nf5 {[%emt 0:00:59]} 9. Be3 {[%emt 0:00:58]} Nxe3 {[%emt 0:00:09]} 10. fxe3 {[%emt 0:00:03]} a6 {[%emt 0:02:07]} 11. Bd3 {[%emt 0:00:35]} Bd7 {[%emt 0:03:07]} 12. O-O {[%emt 0:01:04]} Be7 {[%emt 0:02:25]} 13. Nc3 {[%emt 0:03:35]} Rc8 {[%emt 0:04:48]} 14. Rc1 {[%emt 0:00:45]} f6 {[%emt 0:14:13]} 15. exf6 {[%emt 0:03:40]} Bxf6 {[%emt 0:00:44]} 16. Ng5 {[%emt 0:02:33]} Nxd4 {[%emt 0:11:34]} 17. Qh5+ {[%emt 0:04:19]} Ke7 {[%emt 0:02:13]} 18. Kh1 {[%emt 0:15:13]} Nf5 {[%emt 0:03:17]} 19. Bxf5 {[%emt 0:02:27]} Rxc3 {[%emt 0:04:54]} 20. Rxc3 {[%emt 0:03:35]} Bxc3 {[%emt 0:01:19]} 21. Qf7+ {[%emt 0:00:32]} Kd8 {[%emt 0:03:51]} 22. Bxe6 {[%emt 0:01:41]} Bxe6 {[%emt 0:01:59]} 23. Nxe6+ {[%emt 0:00:30]} Kc8 {[%emt 0:00:20]} 24. Rc1 {[%emt 0:01:50]} Qc6 {[%emt 0:02:29]} 25. Nc5 {[%emt 0:02:51]} Bb2 {[%emt 0:04:19]} 26. Rc2 {[%emt 0:02:55]} Bf6 {[%emt 0:04:08]} 27. a4 {[%emt 0:03:08]} b6 {[%emt 0:02:54]} 28. b5 {[%emt 0:03:49]} axb5 {[%emt 0:05:32]} 29. axb5 {[%emt 0:01:17]} Qc7 {[%emt 0:02:07]} 30. Qe6+ {[%emt 0:00:47]} Kd8 {[%emt 0:01:26]} 31. Qxd5+ {[%emt 0:00:59]} Ke8 {[%emt 0:03:48]} 32. Qe6+ {[%emt 0:13:15]} Be7 {[%emt 0:01:08]} 33. Ra2 {[%emt 0:00:48]} Qd8 {[%emt 0:06:09]} 34. Qc6+ {[%emt 0:04:25]} Kf7 {[%emt 0:01:00]} 35. Rf2+ {[%emt 0:01:31]} Bf6 {[%emt 0:00:56]} 36. Qe6+ {[%emt 0:00:35]} Kg6 {[%emt 0:00:24]} 37. Nd7 {[%emt 0:00:33]} Re8 {[%emt 0:00:48]} 38. Ne5+ {[%emt 0:00:43]} Kh6 {[%emt 0:01:18]} 39. Nf7+ {[%emt 0:00:19]} Kg6 {[%emt 0:00:30]} 40. Nxd8 {[%emt 0:00:08]} Rxe6 {[%emt 0:00:06]} 41. Nxe6 {[%emt 0:00:07]} Kf7 {[%emt 0:00:14]} 42. Nf4 {[%emt 0:00:07]} Ke7 {[%emt 0:00:29]} 43. Nd5+ {[%emt 0:00:05]} 1-0

[Event "EYCC Girls U10 2021"]
[Site "Tornelo"]
[Date "2021.10.15"]
[Round "2.2"]
[White "Ejsymont, Blanka"]
[Black "Beber, Anja"]
[Result "0-1"]
[ECO "A05"]
[WhiteElo "1231"]
[BlackElo "1552"]
[Annotator "NA"]
[PlyCount "100"]
[EventDate "2021.10.15"]
[EventType "swiss"]
[EventCountry "NET"]
[SourceTitle "playchess.com"]
[Source "ChessBase"]
[SourceQuality "1"]
[TimeControl "5400+30"]

1. Nf3 {[%emt 0:00:30]} Nf6 {[%emt 0:01:08]} 2. b3 {[%emt 0:00:07]} e6 {[%emt 0:00:28]} 3. Bb2 {[%emt 0:00:08]} Be7 {[%emt 0:00:04]} 4. e3 {[%emt 0:00:08]} b6 {[%emt 0:00:06]} 5. Be2 {[%emt 0:00:13]} Bb7 {[%emt 0:00:02]} 6. d4 {[%emt 0:00:24]} d6 {[%emt 0:00:11]} 7. c4 {[%emt 0:00:12]} Nbd7 {[%emt 0:00:06]} 8. Nbd2 {[%emt 0:00:22]} c5 {[%emt 0:00:15]} 9. O-O {[%emt 0:00:59]} O-O {[%emt 0:00:15]} 10. Rc1 {[%emt 0:03:30]} Rc8 {[%emt 0:03:21]} 11. Qc2 {[%emt 0:04:03]} Qc7 {[%emt 0:00:25]} 12. Rfd1 {[%emt 0:00:42]} Rfd8 {[%emt 0:00:11]} 13. a3 {[%emt 0:06:40]} Qb8 {[%emt 0:05:32]} 14. Qb1 {[%emt 0:01:57]} h6 {[%emt 0:05:31]} 15. Bd3 {[%emt 0:05:58]} Bf8 {[%emt 0:08:33]} 16. Ne4 {[%emt 0:06:24]} Qa8 {[%emt 0:02:31]} 17. Ned2 {[%emt 0:04:00]} Re8 {[%emt 0:00:46]} 18. h3 {[%emt 0:04:48]} e5 {[%emt 0:01:22]} 19. d5 {[%emt 0:02:03]} Qb8 {[%emt 0:04:13]} 20. Ne4 {[%emt 0:02:06]} Qc7 {[%emt 0:01:18]} 21. Ng3 {[%emt 0:02:58]} Qd8 {[%emt 0:01:14]} 22. Bf5 {[%emt 0:01:37]} g6 {[%emt 0:01:21]} 23. Bxd7 {[%emt 0:02:10]} Nxd7 {[%emt 0:01:02]} 24. Ne4 {[%emt 0:01:42]} f5 {[%emt 0:00:48]} 25. Ng3 {[%emt 0:00:55]} Bg7 {[%emt 0:01:56]} 26. e4 {[%emt 0:00:43]} f4 {[%emt 0:00:10]} 27. Ne2 {[%emt 0:00:45]} h5 {[%emt 0:00:54]} 28. Qa1 {[%emt 0:00:57]} Qe7 {[%emt 0:01:31]} 29. Nh2 {[%emt 0:01:57]} Bh6 {[%emt 0:00:38]} 30. f3 {[%emt 0:01:23]} Rc7 {[%emt 0:01:25]} 31. Rc2 {[%emt 0:01:34]} Bc8 {[%emt 0:00:13]} 32. Nc3 {[%emt 0:00:40]} Nf6 {[%emt 0:02:53]} 33. Rf1 {[%emt 0:02:41]} g5 {[%emt 0:02:42]} 34. Qd1 {[%emt 0:01:24]} a6 {[%emt 0:01:02]} 35. a4 {[%emt 0:01:06]} Qg7 {[%emt 0:00:19]} 36. Qe2 {[%emt 0:01:56]} g4 {[%emt 0:02:52]} 37. hxg4 {[%emt 0:00:32]} hxg4 {[%emt 0:00:06]} 38. fxg4 {[%emt 0:00:12]} Nxg4 {[%emt 0:00:09]} 39. Nxg4 {[%emt 0:00:15]} Bxg4 {[%emt 0:00:04]} 40. Qf2 {[%emt 0:00:50]} f3 {[%emt 0:01:20]} 41. g3 {[%emt 0:01:28]} Rf7 {[%emt 0:03:38]} 42. Qe1 {[%emt 0:00:35]} Bh3 {[%emt 0:00:23]} 43. Rff2 {[%emt 0:00:47]} Kh7 {[%emt 0:02:20]} 44. Rh2 {[%emt 0:01:10]} Qg4 {[%emt 0:07:43]} 45. Bc1 {[%emt 0:07:08]} Rg8 {[%emt 0:01:58]} 46. Bxh6 {[%emt 0:02:58]} Kxh6 {[%emt 0:14:51]} 47. Rxh3+ {[%emt 0:00:39]} Qxh3 {[%emt 0:04:29]} 48. Rh2 {[%emt 0:00:17]} f2+ {[%emt 0:00:07]} 49. Qxf2 {[%emt 0:01:40]} Rxg3+ {[%emt 0:00:22]} 50. Qxg3 {[%emt 0:12:36]} Rf1# {[%emt 0:00:07]} 0-1